Workbook

Sheet Instructions (hidden)
A1: NECEEM electropherogram batch analysis
A2: Version 0.32 , July 18, 2014
A3: Implementation: Victor Galievsky, Mirzo Kanoatov, Sergey N. Krylov.
A4: Based on: Cherney, L.T.; Kanoatov, M.; Krylov, S.N. Anal. Chem. 2011, 83, 8617-8622
A5: Summary: This program analyzes NECEEM electropherograms and extracts Kd, kon and koff values in a batch regime. It employs the peak deconvolution method developed by Cherney et al (reference 1). This version is developed for analysis of data obtained by a P/ACE MDQ series of Capillary Electrophoresis instruments (Beckman-Coulter), and exported by 32 Karat software, version 7. The program has been written using Visual Basic, and requires Microsoft Excel version 2007 or later. The most recent version of this program can be downloaded from: http://www.yorku.ca/skrylov/resources.html The general algorithm of the program: - All data files within a user-defined folder are imported into the workbook - The baseline is linearised within the user-defined working region of the signal - User-defined background regions and a signal-to-noise constant are used to identify non-convoluted edges of the complex and free-ligand peaks - The data is smoothed using Savitzky-Golay method - A first derivative of the data is used to approximate maxima of the two peaks. The peak maxima values are further refined by fitting to a polynomial equation. - Assuming peak symmetry, convoluted edges of the two peaks are resolved and areas under the three regions of the NECEEM electropherograms are calculated. This step uses the original non-smoothed data - The signal areas are used to calculate Kd, kon and koff.
A7: Instructions:
A8: 1. Obtain a good set of NECEEM data: - Ensure that your Ligand-only peak is symmetric. You should use the symmetry-correcting pressure propagation method described in ref. 2. Also, try to avoid significant mismatches in ionic strengths of sample and run buffers. - There should be a sufficient span of baseline both before and after the NECEEM signal. Make sure not to stop the runs prematurely and cut off the end of a peaks. - Make sure not to use any internal standards that co-migrate with the NECEEM components. - Try to avoid very noisy or irregular data.
A9: 2. Group the data for batch analysis: -This program works best for batch analysis of replicates and concentration titration experiments. When analyzing multiple results in a batch mode, make sure not to group unrelated data together. - In any group of data, the migration times of both the complex and the free ligand peaks should be similar. Thus, do not group data that has been obtained using different capillary lengths, electric field strengths, or using different interacting components.
A10: 3. Define the working region and background regions: - Open a group of data in 32 Karat software, or an alternative viewing software. Do not adjust the scale or alignment of the traces. - Pick a point in the electropherograms that precedes the NECEEM peaks by a small stretch of the baseline. Pick a value that is common to all of the electropherograms in the group. Record the time value of this point as the beginning of the working region. (Note: 32 Karat displays the time of the point under the cursor in the top left corner of the screen). - Pick a point in the electropherograms that follows the NECEEM peaks after a small stretch of the baseline. Pick a value that is common to all of the electropherograms in the group. Record this value as the end of the working region. You now have two points that define the working region. - Pick two points within the working region that separate the NECEEM peaks from the baseline. The points should be as close to the NECEEM peaks as possible, but should not enter into the peaks. Record these values as the Edge of background 1 and 2. - Make sure to exclude any internal standard peaks or signal abnormalities from the working region. See example below.
A11: Example: The figure below illustrates an example, where 3 replicates of the same experiment are viewed in 32 Karat.
A44: 4. Export electropherograms: - Use 32 Karats export tool (Method > Advanced > Export tab) to export each of the electropherograms into the ASCII format. - If you are not a 32 Karat user, you can format your result files manually. Just paste the all of the signal values of the electropherogram into the "Example_Data" worsheet found in this document. There is no need to define a time column. Define the data acquisition rate (sampling rate) and save the worksheet as a CSV file. - Place all of the grouped exported electropherograms into one folder. Do not place any other files into this folder. - Use the Windows Explorer address bar to copy the file path to the folder with your data (e.g. C:\Users\NECEEM\Results1\). This is the Path to data folder.
A45: 5. Input global parameters - Ensure that Macros are enabled in this Workbook. - Switch to the "Data_input" sheet within this workbook. - Fill out the parameters in cells with a light blue highlight. The parameters are: - Path to data folder, which you have obtained in step 4. -The initial concentrations of the ligand and the target components, which you have used in your experiment. If you have grouped together data which uses a range of concentrations, enter values of one of the combinations. You will have the chance to update theese values on an individual basis later on. - Ratio of quantum yields of Ligand and Complex. Reference 3 describes a method to obtain this value. - Duration of the pressure propagation step, which you have used in your experiments. - Signal-to-noise ratio coeficient. This parameter should remain at the default value of 5 for clean electropherograms, and increased for noisy electropherograms. - Timepoints that define the working region and background regions, which you have obtained in step 3. - Fractions of peak widths, for complex and ligand, to determine peak maxima. Start with 0.1, and increase up to 0.5 if peak maxima recognition is not working well.
A46: 6. Analyze data - Press the "Analyze Data" button. - Depending on the number of data files in the group, the calculations may take up to a few minutes. Do not perform any other operations on your computer while the calculations are in progress. An "Analysis Complete!" message box will appear when the operation has finished. - A summary of your results, including the Kd, kon and koff values, as well as the deconvoluted areas of each NECEEM region, will appear in a "Results" table on the right side of the sheet. - If you have grouped together data which uses a range of different concentrations, update the concentration values in the "Results" table in the Data_Input worksheet. These values will override the default values in calculation of Kd, kon and koff.
A47: 7. Verify accuracy of the results - After performing the analysis, additional sheets, Named "DataSet_n" will appear in this workbook, where "n" refers to the incremental number of each data file that has been processed. - Review the charts in each of these sheets, to verify that the program has correctly identified the peak widths and maxima. - If any of the values have been misidentified, correct the input parameters on a file-by file basis (only modify cells with a light blue highlight). - If your maxima has been missidentified, increase the signal-to-noise ratio coeficient. A value in the range of 3-50 should be sufficient for most cases. - Make sure to click the "Recalculate" button after the parameter values have been changed. Do not perform any other operations on your computer while the recalculation is in progress. A "Recalculation Complete!" message box will appear when the operation has finished.
A48: Example: The figure below illustrates results of data processing. Calculated peak maxima are denoted by red and green lines, while peak widths by red and green rectangles.
A50: 8. Obtain your results - Once you are satisfied with the analysis, copy the Results table from the "Data_input" sheet into a new Excel file (use the Paste Values operatioin). - Press the "Reset sheet" button if you wish to erase previous analysis and re-start with a new group of data.
A53: References:
A54: 1. Cherney, L.T.; Kanoatov, M.; Krylov, S.N. Method for determination of peak areas in nonequilibrium capillary electrophoresis of equilibrium mixtures. Analytical Chemistry 2011, 83, 8617-8622
A55: 2. Kanoatov, M.; Retif, C.; Cherney, L.T.; Krylov, S.N. Peak-shape correction to symmetry for pressure-driven sample injection in capillary electrophoresis. Analytical Chemistry 2012, 84, 149-154
A56: 3. Krylova, S.M.; Wegman, D.; Krylov, S.N. Making DNA hybridization assays in capillary electrophoresis quantitative. Analytical Chemistry 2010, 82, 4428-4433

Sheet Example_Data (hidden)
A1: Data Analysis Template
A2: Please do not change position of elements.
A8: Sampling Rate: | B8: 4
A9: Total Data Points: | B9: =COUNT(A14:A1048576) -> 14701 | C9: < Calculated automatically
A13: Signal (AU)
A14: -16362
A15: -16416
A16: -16451
A17: -16419
A18: -16318
A19: -16198
A20: -16127
A21: -16124
A22: -16156
A23: -16181
A24: -16188
A25: -16196
A26: -16232
A27: -16292
A28: -16338
A29: -16325
A30: -16248
A31: -16157
A32: -16119
A33: -16157
A34: -16229
A35: -16280
A36: -16287
A37: -16266
A38: -16249
A39: -16257
A40: -16285
A41: -16319
A42: -16356
A43: -16387
A44: -16387
A45: -16327
A46: -16210
A47: -16089
A48: -16046
A49: -16135
A50: -16321
A51: -16497
A52: -16576
A53: -16551
A54: -16487
A55: -16452
A56: -16474
A57: -16531
A58: -16574
A59: -16564
A60: -16494
A61: -16389
A62: -16273
A63: -16170
A64: -16107
A65: -16108
A66: -16168
A67: -16247
A68: -16300
A69: -16315
A70: -16322
A71: -16356
A72: -16416
A73: -16457
A74: -16432
A75: -16339
A76: -16219
A77: -16124
A78: -16082
A79: -16087
A80: -16113
A81: -16129
A82: -16119
A83: -16091
A84: -16072
A85: -16090
A86: -16145
A87: -16215
A88: -16273
A89: -16297
A90: -16276
A91: -16222
A92: -16171
A93: -16157
A94: -16178
A95: -16203
A96: -16214
A97: -16218
A98: -16243
A99: -16299
A100: -16365
A101: -16397
A102: -16374
A103: -16315
A104: -16262
A105: -16252
A106: -16297
A107: -16378
A108: -16464
A109: -16529
A110: -16565
A111: -16565
A112: -16529
A113: 269
A114: 337
A115: 390
A116: 421
A117: 440
A118: 454
A119: 463
A120: 453
A121: 418
A122: 368
A123: 330
A124: 346
A125: 441
A126: 598
A127: 762
A128: 867
A129: 872
A130: 772
A131: 599
A132: 420
A133: 304
A134: 270
A135: 282
A136: 290
A137: 268
A138: 223
A139: 168
A140: 116
A141: 75
A142: 49
A143: 36
A144: 30
A145: 26
A146: 21
A147: 25
A148: 51
A149: 101
A150: 152
A151: 170
A152: 148
A153: 114
A154: 98
A155: 101
A156: 105
A157: 93
A158: 68
A159: 53
A160: 76
A161: 144
A162: 230
A163: 290
A164: 305
A165: 297
A166: 287
A167: 273
A168: 243
A169: 207
A170: 191
A171: 201
A172: 214
A173: 209
A174: 190
A175: 178
A176: 192
A177: 227
A178: 255
A179: 250
A180: 210
A181: 158
A182: 120
A183: 107
A184: 108
A185: 98
A186: 56
A187: 2
A188: -18
A189: 26
A190: 123
A191: 223
A192: 275
A193: 255
A194: 183
A195: 106
A196: 69
A197: 81
A198: 117
A199: 143
A200: 137
A201: 95
A202: 37
A203: -10
A204: -31
A205: -24
A206: 9
A207: 68
A208: 133
... 14506 more rows

Sheet Analysis_template (hidden)
A1: Version:
A2: Maxchannels: | G2: File name
A3: Sample ID: | B3: Sample
A4: Data File: | B4: C:\Sample | BP4: Savitzky–Golay smoothing coefficients
A5: Method: | B5: C:\Sample
A6: User Name: | B6: System | BR6: smooth | BS6: dev
A7: Acquisition Date and Time: | BP7: =(COUNT($BP$8:$BP$46)-1)/2 -> 14
A8: Sampling Rate: | B8: 4 | C8: 4 | D8: 4 | E8: Hz | BP8: 1 | BQ8: =BP8-$BP$7-1 -> -14 | BR8: =3*(3*$BP$7^2+3*$BP$7-1-5*BQ8^2)/(2*$BP$7+3)/(2*$BP$7+1)/(2*$BP$7-1) -> -0.04338153504 | BS8: =3*BQ8/(2*$BP$7+1)/($BP$7+1)/$BP$7 -> -0.006896551724
A9: Total Data Points: | B9: 14701 | C9: 14701 | D9: 14701 | E9: Pts. | BP9: 2 | BQ9: =BP9-$BP$7-1 -> -13 | BR9: =3*(3*$BP$7^2+3*$BP$7-1-5*BQ9^2)/(2*$BP$7+3)/(2*$BP$7+1)/(2*$BP$7-1) -> -0.02669632925 | BS9: -0.006403940887
A10: X Axis Title: | B10: Minutes | C10: Minutes | D10: Minutes | BP10: 3 | BQ10: -12 | BR10: -0.01124706464 | BS10: -0.005911330049
A11: Y Axis Title: | B11: RFU | C11: KV | D11: ｵA | BP11: 4 | BQ11: -11 | BR11: 0.002966258806 | BS11: -0.005418719212
A12: X Axis Multiplier: | B12: 0.016667 | C12: 0.016667 | D12: 0.016667 | BP12: 5 | BQ12: -10 | BR12: 0.01594364108 | BS12: -0.004926108374
A13: Y Axis Multiplier: | B13: 1.00E-05 | C13: 1.00E-05 | D13: 1.00E-05 | BP13: 6 | BQ13: -9 | BR13: 0.02768508219 | BS13: -0.004433497537
BP14: 7 | BQ14: -8 | BR14: 0.03819058213 | BS14: -0.0039408867
BP15: 8 | BQ15: -7 | BR15: 0.0474601409 | BS15: -0.003448275862
BP16: 9 | BQ16: -6 | BR16: 0.0554937585 | BS16: -0.002955665025
BP17: 10 | BQ17: -5 | BR17: 0.06229143493 | BS17: -0.002463054187
BP18: 11 | BQ18: -4 | BR18: 0.06785317019 | BS18: -0.00197044335
BP19: 12 | BQ19: -3 | BR19: 0.07217896428 | BS19: -0.001477832512
BP20: 13 | BQ20: -2 | BR20: 0.0752688172 | BS20: -0.0009852216749
BP21: 14 | BQ21: -1 | BR21: 0.07712272896 | BS21: -0.0004926108374
BP22: 15 | BQ22: 0 | BR22: 0.07774069954 | BS22: 0
BP23: 16 | BQ23: 1 | BR23: 0.07712272896 | BS23: 0.0004926108374
BP24: 17 | BQ24: 2 | BR24: 0.0752688172 | BS24: 0.0009852216749
BP25: 18 | BQ25: 3 | BR25: 0.07217896428 | BS25: 0.001477832512
BP26: 19 | BQ26: 4 | BR26: 0.06785317019 | BS26: 0.00197044335
BP27: 20 | BQ27: 5 | BR27: 0.06229143493 | BS27: 0.002463054187
BP28: 21 | BQ28: 6 | BR28: 0.0554937585 | BS28: 0.002955665025
BP29: 22 | BQ29: 7 | BR29: 0.0474601409 | BS29: 0.003448275862
BP30: 23 | BQ30: 8 | BR30: 0.03819058213 | BS30: 0.0039408867
BP31: 24 | BQ31: 9 | BR31: 0.02768508219 | BS31: 0.004433497537
BP32: 25 | BQ32: 10 | BR32: 0.01594364108 | BS32: 0.004926108374
G33: Note: For manual adjustments, only change the cells highlighted in light blue | BP33: 26 | BQ33: =BP33-$BP$7-1 -> 11 | BR33: =3*(3*$BP$7^2+3*$BP$7-1-5*BQ33^2)/(2*$BP$7+3)/(2*$BP$7+1)/(2*$BP$7-1) -> 0.002966258806 | BS33: =3*BQ33/(2*$BP$7+1)/($BP$7+1)/$BP$7 -> 0.005418719212
G34: Initial concentration of Ligand | H34: 1.00E+01 | I34: M | L34: YC,end= | M34: =OFFSET($Z$50,($M$35-$J$37)*$Q$41,) ->  | P34: Y max | Q34: =MAX(RFU_orig) -> -314581 | R34: =Q34*0.6 -> -188748.6 | U34: m1 | V34: m0 | Y34: max1 | Z34: =OFFSET($Z$50,($AD$34-$J$37)*$Q$41,) ->  | AA34: =MAX(IF(NOT(ISNA(AC50:AC32050)),AC50:AC32050))*1.1 -> 0 | AC34: tmax1= | AD34: =(MATCH(0,AD51:AD3800,0))/$Q$41+$J$37 ->  | AE34: =AD34/60 ->  | AG34: tmax2= | AH34: =$J$40-(MATCH(0,AH51:AH3800,0))/$Q$41 ->  | AI34: =AH34/60 ->  | AK34: m2 | AL34: m1 | AM34: m0 | AP34: m2 | AQ34: m1 | AR34: m0 | BP34: 27 | BQ34: 12 | BR34: -0.01124706464 | BS34: 0.005911330049
G35: Initial concentration of Target | H35: 1.00E+01 | I35: M | L35: tC,end= | M35: =$AD$40*2-$AD$35 ->  | N35: =M35/60 ->  | P35: Y min | Q35: =MIN(RFU_orig) -> -314854 | U35: =LINEST(bg_RFU,bg_time,1,1) -> 50.17142857 | V35: -15503.1619 | Y35: max2 | Z35: =OFFSET($Z$50,($AH$34-$J$37)*$Q$41,) ->  | AC35: tC,st= | AD35: =(MATCH(0,AE51:AE3800,0))/$Q$41+$J$37 ->  | AE35: =AD35/60 ->  | AG35: tA,end= | AH35: =$J$40-(MATCH(0,AI51:AI3800,0))/$Q$41 ->  | AI35: =AH35/60 ->  | AK35: =LINEST(max1_RFU,max1_time2,1,1) -> -1303.428571 | AL35: 930923.4525 | AM35: -166101669.3 | AP35: =LINEST(max2_RFU,max2_time2,1,1) -> -527.2380952 | AQ35: 497803.7668 | AR35: -117406573.3 | BP35: 28 | BQ35: 13 | BR35: -0.02669632925 | BS35: 0.006403940887
G36: Quantum yield ratio Ligand/Complex | H36: 1 | L36: YA,st= | M36: =OFFSET($Z$50,($M$37-$J$37)*$Q$41,,) ->  | P36: range1 end | Q36: =J37+J38 -> 270 | U36: 13.56803273 | V36: 2954.475475 | AK36: 83.2628491 | AL36: 59303.97207 | AM36: 10559802.51 | AP36: 39.66480874 | AQ36: 37364.25378 | AR36: 8799274.637 | BP36: 29 | BQ36: 14 | BR36: -0.04338153504 | BS36: 0.006896551724
G37: Beginning of working region (min) | H37: 3 | I37: =H37-$G$50 -> 2.5 | J37: =I37*60 -> 150 | L37: tA,st= | M37: =$AH$40*2-$AH$35 ->  | N37: =M37/60 ->  | P37: range2 start | Q37: =J40-J39 -> 990 | U37: 0.5126245873 | V37: 56.75915314 | AC37: Dtc= | AD37: =$AD$34-$AD$35 ->  | AE37: s | AG37: Dta= | AH37: =ABS($AH$34-$AH$35) ->  | AI37: s | AK37: 0.9995900687 | AL37: 31.79652572 | AP37: 0.9991358221 | AQ37: 22.72087356
G38: Edge of background 1 (min) | H38: 5 | I38: =(H38-$G$50)-I37 -> 2 | J38: =I38*60 -> 120 | L38: A= | M38: =SUM(OFFSET($Z$50,($M$37-$J$37)*$Q$41,0,($AH$35-$M$37)*$Q$41,1))*($R$51-$R$50) ->  | N38: =O38/(O38+O40+O42) ->  | O38: =(M38-M39)/AI40 ->  | P38: range Y | Q38: =Q34/20 -> -15729.05 | U38: 13.67348344 | V38: 13 | AC38: Dtc= | AD38: =$AD$37*$Q$41 ->  | AE38: points | AG38: Dta= | AH38: =$AH$37*$Q$41 ->  | AI38: points | AK38: 3657.650108 | AL38: 3 | AP38: 2312.338332 | AQ38: 4
G39: Edge of background 2 (min) | H39: 17 | I39: =I40-(H39-$G$50) -> 3 | J39: =I39*60 -> 180 | L39: A*= | M39: =2/3*$M$36*(($AH$35-$M$37)/2) ->  | P39: range -Y | Q39: =-Q38 -> 15729.05 | U39: 44050.51429 | V39: 41880.81905 | AK39: 7395907.858 | AL39: 3033.057143 | AP39: 2387434.272 | AQ39: 2064.952381
G40: End of working region (min) | H40: 20 | I40: =H40-$G$50 -> 19.5 | J40: =I40*60 -> 1170 | L40: C= | M40: =SUM(OFFSET($Z$50,($AD$35-$J$37)*$Q$41,0,($M$35-$AD$35)*$Q$41,1))*($R$51-$R$50) ->  | N40: =O40/(O38+O40+O42) ->  | O40: =(M40-M41)*H36/AE40 ->  | P40: zero | Q40: 0 | AC40: tC= | AD40: =-$AL$35/2/$AK$35 -> 357.1056646 | AE40: =AD40/60 -> 5.951761077 | AG40: tA= | AH40: =-$AQ$35/2/$AP$35 -> 472.0863034 | AI40: =AH40/60 -> 7.868105057
G41: Signal to noise ratio coeficient | H41: 20 | L41: C*= | M41: =2/3*$M$34*(($M$35-$AD$35)/2) ->  | P41: Sampling Rate | Q41: =$B$8 -> 4
G42: Peak width fraction for Complex | H42: 0.1 | L42: D= | M42: =SUM(OFFSET($Z$50,($M$35-$J$37)*$Q$41,0,($M$37-$M$35)*$Q$41,1))*($R$51-$R$50) ->  | N42: =O42/(O38+O40+O42) ->  | O42: =(M39+M41+M42)/AI40 ->  | P42: range max1 | Q42: =OFFSET($Z$50,($AD$34-$J$37-$AD$37*0.1)*$Q$41,) -> 
G43: Peak width fraction for Ligand | H43: 0.1 | L43: G= | M43: =$H$36*$AH$34/$AD$34 ->  | P43: range max2 | Q43: =OFFSET($Z$50,($AH$34-$J$37+$AH$37*0.1)*$Q$41,) -> 
G44: Kd= | H44: =(H35-H34*(1-(O38/(O38+O40+O42))))/(((O38+O40+O42)/O38-1)) ->  | I44: M | L44: a0/c0= | M44: =($M$38-$M$39)/($M$43*($M$40-$M$41)+$M$42+$M$39+$M$41) -> 
G45: koff= | H45: =1/$AD$34*LN($M$45) ->  | I45: s-1 | L45: c0/c(tc)= | M45: =1+($M$42+$M$39+$M$41)/$M$43/($M$40-$M$41) -> 
G46: kon= | H46: =H45/H44 ->  | I46: M-1 s-1
Q48: Final Data (X) | Z48: Final Data (Y)
G49: Propagatioin Time | I49: time, s | J49: RFU_orig | L49: index | M49: time, min | Q49: time_window_min | R49: time_window | S49: RFU_window | V49: bg_time | W49: bg_RFU | Z49: RFU_corr | AA49: RFU_sm | AC49: Divergency | AD49: max1 | AE49: tc,st | AG49: Div_rev | AH49: max2 | AI49: ta,end | AK49: max1_RFU | AL49: max1_time | AM49: max1_time2 | AN49: max1_fit | AP49: max2_RFU | AQ49: max2_time | AR49: max2_time2 | AS49: max2_fit
G50: 0.5 | H50: =G50*60 -> 30 | I50: =0-$H$50 -> -30 | J50: -314854 | L50: 0 | M50: =(I50/60)+$G$50 -> 0 | Q50: =R50/60 -> 3.6 | R50: 216 | S50: -4578 | V50: =IF(R50<=$R$50+$J$38,R50,OFFSET($R$50,$L50+($J$40-$J$37-$J$39-$J$38)*$Q$41-1,,)) -> 216 | W50: =IF(R50<=$R$50+$J$38,S50,OFFSET($S$50,$L50+($J$40-$J$37-$J$39-$J$38)*$Q$41-1,,)) -> -4578 | Z50: 173.4219002 | AA50: =SUMPRODUCT(Z36:Z64,$BR$8:$BR$36) -> 58.33059353 | AC50: =IF(ABS(AA50)>=$V$37*$H$41,SUMPRODUCT(AA36:AA64,$BS$8:$BS$36)*$Q$41,NA()) ->  | AD50: =IF(ISNUMBER(AC50), IF(AC50<=0,0,R50), R50) -> 216 | AE50: =IF(ISNUMBER(AC50),0,R50) -> 216 | AG50: =OFFSET($AC$50,COUNT(RFU_corr)-1-$L50,,) ->  | AH50: =IF(ISNUMBER(AG50), IF(AG50>=0,0,$J$37+$J$40-R50), $J$37+$J$40-R50) -> 1104 | AI50: =IF(ISNUMBER(AG50),0,$J$37+$J$40-R50) -> 1104 | AK50: 113968.3182 | AL50: 355.5 | AM50: 126380.25 | AN50: 113979.582 | AP50: 94838.7007 | AQ50: 470.25 | AR50: 221135.0625 | AS50: 94732.60683
I51: =I50+1/$Q$41 -> -29.75 | J51: -314828 | L51: =L50+1 -> 1 | R51: 216.25 | S51: -4573 | V51: 216.25 | W51: -4573 | Z51: 178.6493129 | AA51: 46.56264172 | AD51: 216.25 | AE51: 216.25 | AH51: 629.75 | AI51: 629.75 | AK51: 114984.5456 | AL51: 355.75 | AM51: 126558.0625 | AN51: 114957.6995 | AP51: 95248.92811 | AQ51: 470.5 | AR51: 221370.25 | AS51: 95208.02086
I52: -59.5 | J52: -314812 | L52: 2 | R52: 216.5 | S52: -4618 | V52: 216.5 | W52: -4618 | Z52: 133.8767257 | AA52: -40.66477106 | AD52: 216.5 | AE52: 216.5 | AH52: 629.5 | AI52: 629.5 | AK52: 115772.7731 | AL52: 356 | AM52: 126736 | AN52: 115768.6672 | AP52: 95635.15553 | AQ52: 470.75 | AR52: 221605.5625 | AS52: 95619.44914
I53: -59.25 | J53: -314805 | L53: 3 | R53: 216.75 | S53: -4679 | V53: 216.75 | W53: -4679 | Z53: 73.1041385 | AA53: -112.8921838 | AD53: 216.75 | AE53: 216.75 | AH53: 629.25 | AI53: 629.25 | AK53: 116376.0005 | AL53: 356.25 | AM53: 126914.0625 | AN53: 116412.485 | AP53: 95979.38294 | AQ53: 471 | AR53: 221841 | AS53: 95966.89169
I54: -59 | J54: -314795 | L54: 4 | R54: 217 | S54: -4712 | V54: 217 | W54: -4712 | Z54: 40.33155129 | AA54: -135.1195966 | AD54: 217 | AE54: 217 | AH54: 629 | AI54: 629 | AK54: 116846.2279 | AL54: 356.5 | AM54: 127092.25 | AN54: 116889.153 | AP54: 96249.61035 | AQ54: 471.25 | AR54: 222076.5625 | AS54: 96250.34849
I55: -58.75 | J55: -314770 | L55: 5 | R55: 217.25 | S55: -4697 | V55: 217.25 | W55: -4697 | Z55: 55.55896407 | AA55: -103.3470094 | AD55: 217.25 | AE55: 217.25 | AH55: 628.75 | AI55: 628.75 | AK55: 117204.4553 | AL55: 356.75 | AM55: 127270.5625 | AN55: 117198.6711 | AP55: 96425.83776 | AQ55: 471.5 | AR55: 222312.25 | AS55: 96469.81955
I56: -58.5 | J56: -314725 | L56: 6 | R56: 217.5 | S56: -4649 | V56: 217.5 | W56: -4649 | Z56: 103.7863769 | AA56: -40.57442219 | AD56: 217.5 | AE56: 217.5 | AH56: 628.5 | AI56: 628.5 | AP56: 96522.06518 | AQ56: 471.75 | AR56: 222548.0625 | AS56: 96625.30487
I57: -58.25 | J57: -314666 | L57: 7 | R57: 217.75 | S57: -4598 | V57: 217.75 | W57: -4598 | Z57: 155.0137896 | AA57: 11.19816503 | AD57: 217.75 | AE57: 217.75 | AH57: 628.25 | AI57: 628.25
I58: -58 | J58: -314615 | L58: 8 | R58: 218 | S58: -4559 | V58: 218 | W58: -4559 | Z58: 194.2412024 | AA58: 12.97075224 | AD58: 218 | AE58: 218 | AH58: 628 | AI58: 628
I59: -57.75 | J59: -314592 | L59: 9 | R59: 218.25 | S59: -4530 | V59: 218.25 | W59: -4530 | Z59: 223.4686152 | AA59: -49.25666054 | AD59: 218.25 | AE59: 218.25 | AH59: 627.75 | AI59: 627.75
I60: -57.5 | J60: -314589 | L60: 10 | R60: 218.5 | S60: -4510 | V60: 218.5 | W60: -4510 | Z60: 243.696028 | AA60: -152.4840733 | AD60: 218.5 | AE60: 218.5 | AH60: 627.5 | AI60: 627.5
I61: -57.25 | J61: -314584 | L61: 11 | R61: 218.75 | S61: -4501 | V61: 218.75 | W61: -4501 | Z61: 252.9234408 | AA61: -258.7114861 | AD61: 218.75 | AE61: 218.75 | AH61: 627.25 | AI61: 627.25
I62: -57 | J62: -314581 | L62: 12 | R62: 219 | S62: -4499 | V62: 219 | W62: -4499 | Z62: 255.1508535 | AA62: -341.9388989 | AD62: 219 | AE62: 219 | AH62: 627 | AI62: 627
I63: -56.75 | J63: -314603 | L63: 13 | R63: 219.25 | S63: -4495 | V63: 219.25 | W63: -4495 | Z63: 259.3782663 | AA63: -390.1663117 | AD63: 219.25 | AE63: 219.25 | AH63: 626.75 | AI63: 626.75
I64: -56.5 | J64: -314660 | L64: 14 | R64: 219.5 | S64: -4477 | V64: 219.5 | W64: -4477 | Z64: 277.6056791 | AA64: -406.3937244 | AD64: 219.5 | AE64: 219.5 | AH64: 626.5 | AI64: 626.5

Sheet Data_input
A1: User Input | C1: Units | F1: Results
A2: Path to data folder | B2: C:\Users\Mirzok\Dropbox\Krylov Lab\1 Lab tools\01 Tools\NECEEM area analysis\Data Folder\ | C2: File Path | E2: # | F2: File Name | G2: Init. Conc. of Ligand (M) | H2: Init. Conc. of Target (M) | I2: Kd (M) | J2: kon (M-1 s-1) | K2: koff (s-1) | L2: Proportion of Free Ligand | M2: Proportion of Complex | N2: Proportion of Decay
A4: Initial concentration of Ligand | B4: 1.00E-08 | C4: M
A5: Initial concentration of Target | B5: 1.00E-08 | C5: M
A6: Quantum yield ratio Ligand/Complex | B6: 1
A7: Signal to noise ratio coeficient | B7: 3
A8: Uncooled zone propagation time | B8: 0 | C8: min
A10: Beginning of working region | B10: 5 | C10: min
A11: Edge of background 1 | B11: 6 | C11: min
A12: Edge of background 2 | B12: 10 | C12: min
A13: End of working region | B13: 11 | C13: min
A15: Peak width fraction for Complex | B15: 0.2
A16: Peak width fraction for Ligand | B16: 0.2
